bitfinex/quotes_ETHUSD_20250529
["timestamp","ask_amount","ask_price","bid_price","bid_amount"]
[1748512941508,5.16153642,2737.3,2736.8,8.0]
[1748512942193,5.16153642,2737.3,2736.8,11.65380455]
[1748512942194,1.5083,2737.3,2736.8,11.65380455]
[1748512942507,5.16155988,2737.3,2736.8,8.0]
[1748512943005,3.65346559,2737.2,2736.8,4.113]
[1748512943394,2.51295305,2737.3,2736.8,12.113]
[1748512944009,2.51295305,2737.3,2736.9,8.0]
[1748512944180,3.65337952,2737.2,2736.9,8.0]
[1748512944780,6.16619349,2737.3,2736.9,8.0]
[1748512944781,3.65352322,2737.1,2736.9,8.0]
[1748512944980,3.65352322,2737.1,2736.6,8.0]
[1748512945197,3.65352322,2737.1,2736.8,8.0]
[1748512945401,3.65343231,2737.2,2736.8,8.0]
[1748512945567,3.65343231,2737.2,2736.6,3.65415551]
[1748512945771,3.65370601,2737.0,2736.7,4.105]
[1748512946205,3.65370601,2737.0,2736.7,8.0]
[1748512946510,4.75857989,2737.2,2736.6,8.0]
[1748512946808,3.65371294,2737.0,2736.6,12.102]
[1748512947895,1.10516258,2737.2,2736.6,12.102]
[1748512948072,3.65352309,2737.1,2736.6,15.75609398]
[1748512948405,3.65352309,2737.1,2736.6,15.75109398]
[1748512948599,3.65352309,2737.1,2736.6,12.097]
[1748512949095,3.65365192,2737.0,2736.6,12.097]
[1748512949470,3.65354782,2737.1,2736.6,12.097]
[1748512949670,4.53506964,2737.1,2736.6,12.097]
[1748512949919,1.5083,2737.3,2736.6,12.097]
[1748512950279,3.65346488,2737.2,2736.6,15.75109444]
[1748512950692,5.16160292,2737.3,2736.8,3.65389061]
[1748512950894,1.5083,2737.3,2736.8,3.65390236]
[1748512951110,4.88516716,2737.4,2736.8,1.6329]
[1748512951313,4.88516716,2737.4,2736.8,5.28669857]
[1748512952019,3.65325476,2737.3,2736.8,1.6329]
[1748512952712,3.6535516,2737.1,2736.9,4.081]
[1748512953674,3.6535516,2737.1,2736.8,4.079]
[1748512954077,3.65372336,2737.0,2736.7,4.077]
[1748512954277,3.65346199,2737.2,2736.7,4.077]
[1748512954531,0.85382344,2737.3,2736.7,4.077]
[1748512954680,3.65352824,2737.1,2736.7,4.077]
[1748512955091,3.65359648,2737.1,2736.7,4.077]
[1748512955308,3.65367618,2737.0,2736.5,1.5292]
[1748512955511,3.653572,2737.1,2736.7,8.0]
[1748512955711,3.65339127,2737.2,2736.7,8.0]
[1748512955917,3.65352787,2737.1,2736.7,8.0]
[1748512956321,0.7306788,2737.1,2736.5,1.5292]
[1748512956483,1.232,2737.4,2736.7,8.0]
[1748512956686,3.65336919,2737.2,2736.7,8.0]
[1748512958105,3.65336919,2737.2,2736.7,11.65403115]
[1748512958428,3.65351081,2737.1,2736.8,4.063]
[1748512958924,3.65337266,2737.2,2736.8,4.063]
[1748512959124,0.48852726,2737.3,2736.8,4.063]
[1748512959294,3.65338381,2737.2,2736.8,4.063]
[1748512960090,3.65379417,2736.9,2736.5,1.5292]
[1748512960295,1.232,2737.4,2736.7,8.0]
[1748512960516,3.6533715,2737.2,2736.7,8.0]
[1748512961121,3.65350492,2737.1,2736.7,8.0]
[1748512962326,1.232,2737.4,2736.7,8.0]
[1748512962533,3.653438,2737.2,2736.7,8.0]
[1748512962735,3.653438,2737.2,2736.7,12.049]
[1748512963441,3.65357964,2737.1,2736.5,5.183463]
[1748512963646,3.65357964,2737.1,2736.7,4.046]
[1748512964798,4.50731277,2737.2,2736.7,4.046]
[1748512965003,3.6537648,2737.0,2736.5,1.5292]
[1748512965305,0.52667648,2736.9,2736.6,4.041]
[1748512965641,5.26650879,2737.1,2736.6,7.69510339]
[1748512966142,5.26650879,2737.1,2736.6,4.041]
[1748512966748,1.613,2737.1,2736.6,7.69505639]
[1748512966947,5.26655012,2737.1,2736.6,7.69505639]
[1748512967245,1.613,2737.1,2736.6,7.69505639]
[1748512967408,6.24390234,2737.1,2736.6,7.69505639]
[1748512967746,6.24390234,2737.1,2736.6,4.041]
[1748512967947,3.65364937,2737.0,2736.6,4.041]
[1748512969048,6.24392582,2737.1,2736.5,5.18348986]
[1748512969247,6.24392582,2737.1,2736.7,4.028]
[1748512969449,4.72882355,2737.0,2736.7,4.028]
[1748512970147,4.72882355,2737.0,2736.5,1.5292]
[1748512970348,4.72882355,2737.0,2736.6,4.026]
[1748512970650,3.65397906,2736.8,2736.4,4.024]
[1748512970811,3.65397906,2736.8,2736.1,8.0]
[1748512970812,1.6429,2736.7,2736.1,8.0]
[1748512971152,3.65560479,2735.6,2735.3,4.04]
[1748512971322,1.6429,2736.0,2735.4,3.65567804]
[1748512971535,1.6429,2736.0,2735.2,5.6986]
[1748512971714,1.6429,2736.0,2735.2,6.63907959]
[1748512972221,1.185,2736.1,2735.3,5.485388]
[1748512972463,1.185,2736.1,2735.7,9.78833958]
[1748512972763,1.185,2736.1,2735.6,1.5852]
[1748512973112,2.8378,2736.1,2735.7,4.037]
[1748512973448,3.93876308,2736.0,2735.7,4.037]
[1748512973620,3.65521248,2735.9,2735.6,4.037]
[1748512974021,0.28378,2736.0,2735.3,1.5445]
[1748512974227,3.65531467,2735.8,2735.4,4.035]
[1748512974452,3.65531698,2735.8,2735.3,1.5445]
[1748512974625,3.65603977,2735.2,2735.1,0.05]
[1748512974948,6.49383977,2735.2,2735.1,0.05]
[1748512977210,1.6528,2735.2,2735.1,0.05]
[1748512977417,9.5624,2735.9,2735.1,0.05]
[1748512977612,1.5624,2735.9,2735.1,0.05]
[1748512977850,1.5624,2735.9,2735.3,3.65578958]
[1748512977851,0.969618,2735.8,2735.3,3.65578958]
[1748512978063,1.5624,2735.9,2735.4,3.65564882]
[1748512978263,1.5624,2735.9,2735.3,5.6618]
[1748512978753,1.5624,2735.9,2735.5,3.65556043]
[1748512978925,1.5624,2735.9,2735.5,3.65563473]
[1748512979337,1.5624,2735.9,2735.3,5.6588]
[1748512979682,1.865518,2735.9,2735.2,4.037]
[1748512979822,1.865518,2735.9,2735.3,3.65589473]
[1748512980014,1.865518,2735.9,2735.2,4.037]
[1748512980218,1.185,2736.1,2735.6,3.65545789]
[1748512980485,1.185,2736.1,2736.0,3.65497076]
[1748512980619,1.185,2736.1,2735.9,3.65508938]
[1748512981228,1.185,2736.1,2736.0,3.65497076]
[1748512981645,1.564,2736.5,2735.7,4.034]
[1748512981646,1.15,2736.5,2736.4,3.65432533]
[1748512981819,1.15,2736.8,2736.6,3.65415815]
[1748512982216,1.573,2737.1,2736.2,5.6261]
[1748512982484,1.573,2737.1,2736.7,3.6539495]
[1748512982641,2.723,2737.1,2736.7,3.6539495]
[1748512982819,2.9953,2737.1,2736.3,3.65457003]
[1748512983020,1.573,2737.1,2736.8,3.6538269]
[1748512983221,2.723,2737.1,2736.7,3.65399323]
[1748512983821,2.723,2737.1,2736.6,3.65411368]
[1748512984229,2.723,2737.1,2736.7,3.65403588]
[1748512985361,2.723,2737.1,2736.2,1.5941]
[1748512985570,0.2723,2737.0,2736.2,3.65469782]
[1748512985871,0.2723,2737.0,2736.4,3.65433504]
[1748512986050,0.2723,2737.0,2736.3,3.65451053]
[1748512986248,0.66489089,2736.9,2736.3,3.65449294]
[1748512986465,0.66489089,2736.9,2736.4,3.65442021]
[1748512986673,0.66489089,2736.9,2736.5,3.65422595]
[1748512986844,1.15,2736.9,2735.9,5.2650421]
[1748512987169,0.2723,2737.0,2736.7,3.65395891]
[1748512987381,1.4223,2737.0,2736.7,3.65395891]
[1748512987526,0.2723,2737.0,2736.7,3.65395891]
[1748512987726,1.4223,2737.0,2736.6,3.65410968]
[1748512988077,1.4223,2737.0,2736.5,7.67226699]
[1748512988568,0.2723,2737.0,2736.7,3.6539556]
[1748512988955,0.2723,2737.0,2736.6,3.6541694]
[1748512989966,1.4223,2737.0,2736.6,3.6541694]
[1748512990331,0.29953,2736.9,2736.6,3.6541694]
[1748512990948,0.29953,2736.9,2736.8,3.65390236]
[1748512991127,1.15,2737.0,2736.8,3.65390236]
[1748512991665,1.15,2737.0,2736.5,4.018]
[1748512991829,1.15,2737.0,2736.6,3.65411449]
[1748512992465,1.15,2737.0,2736.6,3.65408228]
[1748512992645,1.15,2737.0,2736.7,3.65401884]
[1748512992850,1.78764759,2737.0,2736.7,3.65401884]
[1748512993055,1.15,2737.0,2736.6,3.65410406]
[1748512993486,1.15,2737.0,2736.5,7.67225936]
[1748512993865,1.15,2737.0,2736.6,3.65415967]
[1748512994679,1.15,2737.0,2736.5,7.65125712]
[1748512994893,1.5647,2736.9,2735.3,3.65588387]
[1748512995031,1.5647,2736.4,2735.8,3.65516064]
[1748512995228,5.21913825,2736.4,2735.9,3.997]
[1748512995453,1.5647,2736.4,2735.9,7.65208441]
[1748512995731,5.2191507,2736.4,2735.9,3.65508441]
[1748512995931,5.2191507,2736.4,2734.3,1.15]
[1748512995932,2.08660572,2736.4,2734.3,1.15]
[1748512996136,1.5647,2736.4,2735.5,3.65563882]
[1748512996333,1.5647,2736.4,2735.8,3.65513954]
[1748512996687,1.5647,2736.4,2735.9,3.65503773]
[1748512997167,3.65460753,2736.3,2735.7,3.65525827]
[1748512997370,3.65460753,2736.3,2735.7,7.64825827]
[1748512997672,3.65491336,2736.1,2735.5,7.64763665]
[1748512997843,1.67193075,2736.2,2735.4,3.65570967]
[1748512997844,3.65499722,2736.0,2735.4,3.65570967]
[1748512998038,3.65499722,2736.0,2735.5,3.991]
[1748512998244,3.65485473,2736.1,2735.5,3.991]
[1748512998460,3.65485473,2736.1,2735.2,5.25080168]
[1748512998631,0.48048547,2736.0,2735.2,5.25080168]
[1748512998837,4.13552416,2736.0,2735.3,3.65588577]
[1748512999151,0.48048547,2736.0,2735.5,3.6556194]
[1748512999335,4.13548819,2736.0,2735.2,1.43494186]
[1748512999564,4.13548819,2736.0,2735.4,3.65567244]
[1748512999750,4.13548819,2736.0,2735.3,3.65589989]
[1748512999751,1.5466,2735.8,2735.3,3.65589989]
[1748513000239,1.5466,2735.8,2735.1,0.05]
[1748513000440,3.6556131,2735.6,2735.1,0.05]
[1748513000836,5.20187768,2735.8,2735.1,0.05]
[1748513000837,1.5466,2735.8,2735.1,0.05]
[1748513001033,3.65603977,2735.2,2735.1,0.05]
[1748513001235,4.02164375,2735.2,2735.1,0.05]
[1748513001447,0.36560398,2735.2,2735.1,3.70617344]
[1748513001646,1.602,2735.5,2735.1,0.05]
[1748513001852,2.752,2735.8,2735.1,0.05]
[1748513002258,2.752,2735.8,2735.3,3.65581444]
[1748513002585,2.752,2735.8,2735.1,10.05]
[1748513002742,0.31655488,2735.7,2735.1,3.70608198]
[1748513002942,0.31655488,2735.7,2735.1,0.05]
[1748513003237,0.31655488,2735.7,2735.2,3.65603165]
[1748513003441,0.31655488,2735.7,2735.1,0.05]
[1748513003878,3.65559213,2735.6,2735.1,0.05]
[1748513004040,0.3972147,2735.5,2735.1,0.05]
[1748513004243,3.65572313,2735.5,2735.1,0.05]
[1748513004438,3.65603977,2735.2,2735.1,0.05]
[1748513004643,5.23743977,2735.2,2735.1,0.05]
[1748513004840,17.21643977,2735.2,2735.1,0.05]
[1748513005287,3.65724317,2734.3,2734.2,1.90290737]
[1748513005490,6.37474317,2734.3,2734.2,1.90290737]
[1748513005649,15.01221749,2734.3,2734.2,1.90290737]
[1748513005843,4.20737692,2734.2,2733.3,4.49392493]
[1748513006073,10.36787692,2734.2,2733.3,4.49392493]
[1748513006284,5.12382749,2734.2,2733.3,4.49392493]
[1748513006495,1.54009957,2734.2,2733.7,3.65796781]
[1748513006705,0.31655488,2735.7,2733.8,11.77747615]
[1748513006887,21.52,2736.2,2734.3,9.6657]
[1748513007072,1.15,2736.1,2734.7,7.266275]
[1748513007386,1.15,2736.1,2734.9,17.65620755]
[1748513007591,1.15,2736.1,2734.9,1.5981]
[1748513007785,8.0,2736.0,2735.1,3.65612999]
[1748513007946,0.30541255,2735.9,2735.0,7.65425359]
[1748513008148,0.30541255,2735.9,2735.1,3.65616409]
[1748513008421,0.30541255,2735.9,2734.9,3.12356401]
[1748513008588,3.96060378,2735.9,2734.9,9.25145162]
[1748513008761,3.65535106,2735.8,2734.7,9.92]
[1748513009079,0.30541255,2735.9,2734.9,10.0]
[1748513009474,5.15754737,2735.8,2734.8,13.65654462]
[1748513009799,1.6259,2735.4,2734.5,3.65695294]
[1748513009962,1.15,2735.3,2734.6,3.65682441]
[1748513010362,1.15,2735.3,2734.7,3.65669031]
[1748513010658,1.15,2735.3,2734.8,3.65656434]
[1748513010862,1.15,2735.3,2734.5,10.0]
[1748513011102,1.15,2735.3,2734.5,1.76510596]
[1748513011299,1.6259,2735.4,2734.5,1.76510596]
[1748513011521,2.10859599,2735.7,2734.6,20.499954]
[1748513011719,1.5623,2735.7,2735.6,3.65550519]
[1748513011883,2.6873,2736.0,2735.7,3.65534016]
[1748513012071,2.6873,2736.0,2735.5,3.65562325]
[1748513012267,30.9693,2736.5,2736.1,3.65478019]
[1748513012622,30.9693,2736.5,2736.0,3.6549091]
[1748513012922,3.09693,2736.4,2735.2,3.65603977]
[1748513013069,3.09693,2736.4,2735.7,3.6552391]
[1748513013262,3.09693,2736.4,2735.6,3.65550519]
[1748513013599,3.09693,2736.4,2735.4,1.58159794]
[1748513013901,3.09693,2736.4,2735.8,3.65514312]
[1748513014109,2.40063291,2736.3,2735.9,3.65508193]
[1748513014418,2.40063291,2736.3,2735.3,3.65587196]
[1748513014707,5.21708084,2736.2,2735.5,3.65558041]
[1748513014876,3.65486724,2736.1,2735.5,3.65558041]
[1748513015080,5.21706046,2736.2,2735.5,3.65558041]
[1748513015280,0.76176934,2736.1,2735.6,3.65546606]
[1748513015495,1.124,2736.0,2735.7,3.65527085]
[1748513015666,1.124,2736.0,2735.4,3.65573708]
[1748513015869,1.124,2736.0,2735.5,3.65563081]
[1748513016395,1.124,2736.0,2735.1,1.5262]
[1748513016599,0.55406718,2735.9,2735.3,10.0]
[1748513016798,1.5623,2736.2,2735.8,3.65515266]
[1748513016998,1.5623,2736.2,2735.7,3.65534589]
[1748513017180,1.5623,2736.2,2735.3,10.0]
[1748513017379,1.5623,2736.2,2736.0,3.65487709]
[1748513017574,0.26863,2736.1,2736.0,3.65487709]
[1748513017979,1.5623,2736.2,2736.0,3.65487709]
[1748513018408,32.163,2736.5,2735.9,3.65500499]
[1748513018581,32.163,2736.5,2735.8,3.65519875]
[1748513018776,3.65443648,2736.4,2735.6,3.6554324]
[1748513019110,3.65484397,2736.1,2735.5,3.65553856]
[1748513019312,1.632,2735.9,2735.3,3.65577404]
[1748513019513,5.28718523,2735.9,2735.2,3.65594978]
[1748513019683,1.632,2735.9,2735.4,3.65575152]
[1748513020102,1.632,2735.9,2735.5,3.65560551]
[1748513020511,1.632,2735.9,2735.1,8.0]
[1748513020719,0.2756,2735.8,2734.6,3.346175]
[1748513020876,1.5263,2735.5,2734.7,10.0]
[1748513021071,1.5263,2735.5,2734.6,12.941083]
[1748513021271,1.5263,2735.5,2734.7,13.45464066]
[1748513021502,1.5263,2735.5,2734.8,2.231674]
[1748513021714,1.7905,2735.8,2734.7,8.76823443]
[1748513022015,1.5149,2735.8,2735.4,3.65566886]
[1748513022175,1.5149,2735.8,2735.5,3.65562866]
[1748513022706,1.5149,2735.8,2735.1,1.6342]
[1748513022894,1.5149,2735.8,2735.3,3.65589607]
[1748513023281,1.5149,2735.8,2735.4,3.65569813]
[1748513023502,2.14428785,2735.8,2734.8,10.0]
[1748513023812,3.65568656,2735.5,2734.7,5.19321048]
[1748513023991,3.65568656,2735.5,2734.9,3.65642061]
[1748513024186,3.97,2735.7,2734.9,10.0]
[1748513024388,3.65577999,2735.4,2734.7,13.6566479]
[1748513024610,5.18164019,2735.5,2734.8,3.65653019]
[1748513024913,0.88371758,2735.4,2734.8,3.65653019]
[1748513025117,8.0,2736.2,2734.9,50.0]
[1748513025325,22.07,2736.5,2735.2,4.038312]
[1748513025326,1.5259,2736.4,2735.2,4.038312]
[1748513025529,3.65472407,2736.2,2735.4,3.65574147]
[1748513025823,1.5259,2736.4,2734.9,5.5066]
[1748513025991,1.5259,2736.4,2735.4,3.65569929]
[1748513026180,3.6552613,2735.8,2735.3,10.0]
[1748513026514,1.6503,2736.1,2735.2,3.65598801]
[1748513026879,3.65521916,2735.9,2735.2,3.65598801]
[1748513027280,1.6503,2736.1,2735.1,8.0]
[1748513027520,1.6503,2736.1,2735.3,13.65590611]
[1748513027723,1.6503,2736.1,2735.4,1.36924653]
[1748513027926,11.65453665,2736.4,2735.7,10.0]
[1748513027927,1.6503,2736.4,2735.7,10.0]
[1748513028128,1.6503,2736.4,2735.5,1.5762]
[1748513028424,3.65487055,2736.1,2735.5,3.65556072]
[1748513028991,3.65473655,2736.2,2735.6,3.65549296]
[1748513029186,3.65473655,2736.2,2735.7,3.65536439]
[1748513029407,1.29265119,2736.2,2735.7,3.65536439]
[1748513029629,1.29265119,2736.2,2735.4,3.65577018]
[1748513029923,4.94742721,2736.2,2735.6,3.65549551]
[1748513030782,3.65486306,2736.1,2735.5,3.65558257]
[1748513030990,1.5954,2735.9,2735.4,8.0]
[1748513031288,3.65523795,2735.8,2735.3,8.0]
[1748513031485,1.5954,2735.9,2734.9,1.5644]
[1748513031730,3.65537156,2735.7,2734.6,5.22113896]
[1748513031915,1.5954,2735.2,2734.7,3.65670396]
[1748513032108,5.25144132,2735.2,2734.7,3.65670396]
[1748513032309,1.5954,2735.2,2734.7,8.0]
[1748513032513,4.14959264,2736.1,2734.7,8.0]
[1748513032514,1.5804,2735.9,2735.0,12.673166]
[1748513032712,1.5804,2735.9,2735.2,10.0]
[1748513032926,1.5804,2735.9,2735.7,3.6552983]
[1748513033224,1.5804,2736.2,2735.8,5.09826692]
[1748513033427,1.5804,2736.2,2735.9,1.44329272]
[1748513033629,1.85084,2736.2,2735.8,3.6552255]
[1748513034095,1.85084,2736.2,2735.9,1.44333281]
[1748513034489,1.85084,2736.2,2735.8,3.65518614]
[1748513034709,1.85084,2736.2,2735.9,1.44344403]
[1748513035605,1.85084,2736.2,2735.7,3.65533226]
[1748513035807,1.85084,2736.2,2735.8,1.44379974]
[1748513036701,5.5055586,2736.2,2735.8,1.44379974]
[1748513036931,0.55055586,2736.1,2735.9,1.44379974]
[1748513037091,5.5055586,2736.2,2735.6,13.65544844]
[1748513037297,1.85084,2736.2,2735.7,5.09937945]
[1748513037634,1.85084,2736.2,2735.8,5.09925276]
[1748513037635,1.5804,2736.2,2735.8,5.09925276]
[1748513037796,1.5804,2736.2,2735.9,1.44402104]
[1748513037991,22.644,2736.5,2735.9,1.44402104]
[1748513038313,22.644,2736.5,2736.1,3.65475998]
[1748513038314,21.4213653,2736.5,2736.1,3.65475998]
[1748513038511,21.4213653,2736.5,2736.2,1.44402104]
[1748513038934,21.4213653,2736.5,2736.1,3.65483614]
[1748513039101,21.4213653,2736.5,2736.2,1.44392702]
[1748513039434,20.2973653,2736.5,2736.2,1.44392702]
[1748513039658,20.2973653,2736.5,2736.4,3.65443648]
[1748513039795,20.2973653,2736.5,2736.4,5.0983635]
[1748513040829,20.2973653,2736.5,2736.4,1.44392702]
[1748513041841,23.95166824,2736.5,2736.4,1.44392702]
[1748513042039,25.52596824,2736.5,2736.4,1.44392702]
[1748513042197,27.22398286,2736.5,2735.9,3.65510043]
[1748513042397,27.22398286,2736.5,2736.0,1.44407786]
[1748513042702,23.56967992,2736.5,2736.1,1.44409275]
[1748513043029,23.56967992,2736.5,2736.1,5.09884005]
[1748513043230,23.56967992,2736.5,2736.2,1.44409275]
[1748513043533,27.22399223,2736.5,2736.2,1.44409275]
[1748513043691,23.56967992,2736.5,2736.3,1.44409275]
[1748513043896,23.56967992,2736.5,2736.2,1.44409275]
[1748513044197,23.56967992,2736.5,2736.1,3.65477404]
[1748513044391,20.6516653,2736.5,2736.2,1.44398245]
[1748513044833,20.6516653,2736.5,2735.7,3.65531766]
[1748513044992,20.6516653,2736.5,2735.8,5.09931083]
[1748513045330,20.6516653,2736.5,2736.0,3.65484817]
[1748513045531,24.30597709,2736.5,2736.1,1.44418926]
[1748513045732,27.10197845,2736.5,2736.1,1.44418926]
[1748513046040,3.6544473,2736.4,2736.1,1.44418926]
[1748513046338,7.59648129,2736.4,2735.5,5.27374867]
[1748513046631,3.65457003,2736.3,2735.7,3.65525704]
[1748513046835,3.65476733,2736.2,2735.8,1.44436926]
[1748513047040,3.65476733,2736.2,2735.7,3.65533333]
[1748513047234,3.65476733,2736.2,2735.8,1.44453866]
[1748513047540,7.59645596,2736.4,2735.8,1.44453866]
[1748513047541,5.04,2736.4,2735.8,1.44453866]
[1748513047840,5.04,2736.4,2735.9,1.44453866]
[1748513048044,7.97459995,2736.4,2736.0,3.65489522]
[1748513048247,7.97459995,2736.4,2736.0,3.65488724]
[1748513048742,7.97459995,2736.4,2736.1,1.44433024]
[1748513049302,2.93459995,2736.4,2735.9,3.65504959]
[1748513049508,25.6906653,2736.5,2736.0,5.09911075]
[1748513049835,21.7516653,2736.5,2736.1,5.09901902]
[1748513050038,20.1773653,2736.5,2736.2,3.6546317]
[1748513050408,20.1773653,2736.5,2736.1,1.5835]
[1748513050728,19.0773653,2736.5,2736.1,1.5835]
[1748513051103,22.73168694,2736.5,2735.9,3.65504579]
[1748513051300,22.73175427,2736.5,2736.0,1.4442239]
[1748513051607,3.65445547,2736.4,2736.0,1.4442239]
[1748513051805,3.65466079,2736.3,2736.0,1.4442239]
[1748513052008,3.6547036,2736.2,2736.1,1.4442239]
[1748513052239,3.6547036,2736.2,2735.6,3.65549681]
[1748513052441,3.6547036,2736.2,2735.7,1.44589935]
[1748513053007,3.6547036,2736.2,2735.7,5.10125147]
[1748513053208,3.6547036,2736.2,2735.8,1.44589935]
[1748513053480,4.93909252,2736.2,2735.8,1.44589935]
[1748513053632,4.93909252,2736.2,2735.9,1.44589935]
[1748513053833,3.65504719,2736.0,2735.4,9.565]
[1748513054011,3.65493226,2736.1,2735.5,5.10408529]
[1748513054214,3.65498327,2736.0,2735.6,1.4484523]
[1748513054410,3.65488242,2736.1,2735.6,1.4484523]
[1748513055332,3.65500526,2736.0,2735.6,1.4484523]
[1748513056118,8.86909252,2736.2,2735.6,1.4484523]
[1748513056119,5.21438892,2736.2,2735.6,1.4484523]
[1748513056325,3.65503649,2736.0,2735.7,1.4484523]
[1748513056571,3.65503649,2736.0,2735.8,1.4484523]
[1748513056572,3.65510435,2735.9,2735.8,1.4484523]
[1748513056857,5.27545988,2736.1,2735.5,1.4484523]
[1748513057058,5.27545988,2736.1,2735.6,1.4484523]
[1748513057270,5.27545988,2736.1,2735.1,1.5249]
[1748513057271,3.65523795,2735.8,2735.1,1.5249]
[1748513057570,3.65523795,2735.8,2735.2,9.44973586]
[1748513057571,3.65570614,2735.5,2735.2,9.44973586]
[1748513057772,3.65570614,2735.5,2734.9,7.58032176]
[1748513057773,4.7554743,2735.7,2735.3,1.44973586]
[1748513057948,5.1872159,2735.6,2735.4,1.44973586]
[1748513058277,5.18715599,2735.6,2735.5,1.45016173]
[1748513058445,5.18715599,2735.6,2735.2,8.0]
[1748513058446,3.96406921,2735.6,2735.3,1.45016173]
[1748513058636,3.65573833,2735.5,2735.3,1.45016173]
[1748513058836,3.65573833,2735.5,2734.9,2.36366889]
[1748513058837,3.65587161,2735.4,2734.9,2.36366889]
[1748513059035,3.65587161,2735.4,2735.0,1.45021283]
[1748513059239,3.65587161,2735.4,2735.1,1.45021283]
[1748513059240,3.65603977,2735.2,2735.1,1.45021283]
[1748513059463,3.922,2735.4,2735.1,1.45021283]
[1748513059464,7.57779661,2735.4,2735.1,1.45021283]
[1748513059791,4.41368577,2735.3,2735.2,1.45021283]
[1748513059955,3.65606171,2735.2,2734.6,5.10717641]
[1748513060146,3.65606171,2735.2,2734.7,1.45035708]
[1748513060350,3.65606171,2735.2,2734.7,5.10706303]
[1748513060551,4.4137027,2735.3,2734.8,1.45035708]
[1748513060861,3.65604047,2735.2,2734.8,1.45035708]
[1748513061086,3.65604047,2735.2,2734.9,1.45035708]
[1748513061394,1.5041,2735.1,2735.0,1.45035708]
[1748513061602,5.16028121,2735.1,2735.0,1.44959691]
[1748513061753,5.16028121,2735.1,2734.1,0.05]
[1748513061754,3.65648329,2734.9,2734.5,1.44986772]
[1748513061953,8.67748329,2734.9,2734.6,1.44986827]
[1748513062192,8.67748329,2734.9,2734.7,1.44986827]
[1748513062366,8.67748329,2734.9,2734.4,3.65710487]
[1748513062367,8.67748329,2734.9,2734.8,1.44986827]
[1748513062566,5.021,2734.9,2734.8,1.44986827]
[1748513062759,8.67744082,2734.9,2734.6,1.44986827]
[1748513062959,8.67744082,2734.9,2734.7,1.44986827]
[1748513063198,8.67744082,2734.9,2734.8,1.44986827]
[1748513063355,8.67744082,2734.9,2734.5,1.44986827]
[1748513063555,8.67744082,2734.9,2734.6,1.44986827]
[1748513063858,5.021,2734.9,2734.7,5.10649968]
[1748513064056,1.1,2734.9,2734.8,1.44986827]
[1748513064299,5.016,2734.9,2734.8,1.44986827]
[1748513064658,8.67244082,2734.9,2734.4,3.65710909]
[1748513064877,5.016,2734.9,2734.3,1.5535]
[1748513065183,5.016,2734.9,2734.6,3.65676942]
[1748513065584,5.016,2734.9,2734.5,3.65690855]
[1748513066405,5.016,2734.9,2734.5,3.65690499]
[1748513066584,5.016,2734.9,2734.6,3.6567976]
[1748513066795,5.016,2734.9,2734.5,3.65693053]
[1748513067027,5.016,2734.9,2734.6,3.65683138]
[1748513067164,5.016,2734.9,2734.5,3.6569067]
[1748513067829,5.016,2734.9,2734.4,3.65705393]
[1748513068025,5.016,2734.9,2734.5,3.65695649]
[1748513068412,5.016,2734.9,2734.8,3.65657452]
[1748513068413,1.1,2734.9,2734.8,3.65657452]
[1748513068627,1.1,2734.9,2734.7,3.65666266]
[1748513068825,1.1,2734.9,2734.5,3.65690524]
[1748513068994,5.26841,2734.9,2734.1,3.70749508]
[1748513069199,8.92492647,2734.9,2734.4,8.0]
[1748513069406,5.008,2734.9,2734.4,11.65708252]
[1748513070438,5.008,2734.9,2734.5,3.65695618]
[1748513070618,8.66445905,2734.9,2734.4,3.65704637]
[1748513070820,5.008,2734.9,2734.5,3.65695461]
[1748513071020,5.008,2734.9,2734.6,1.81523527]
[1748513071595,3.65633404,2735.0,2734.6,1.81523527]
[1748513071841,3.65657452,2734.8,2734.6,1.81523527]
[1748513072043,3.65658347,2734.8,2734.6,1.81523527]
[1748513072191,3.65687732,2734.6,2734.4,1.81523527]
[1748513072606,3.65676815,2734.7,2734.3,1.81523527]
[1748513073329,3.65688624,2734.6,2734.3,1.81523527]
[1748513073933,3.65704832,2734.5,2734.3,1.81523527]
[1748513074135,3.65703941,2734.5,2734.2,1.81523527]
[1748513074318,3.65706228,2734.5,2734.2,1.81523527]
[1748513074518,3.65706228,2734.5,2734.1,1.86415571]
[1748513074519,7.56006228,2734.5,2734.1,1.86415571]
[1748513075150,7.5600735,2734.5,2734.1,1.86415571]
[1748513075458,3.65737692,2734.2,2734.1,1.86415571]
[1748513075602,5.15847692,2734.2,2734.1,0.05]
[1748513075801,24.23584222,2734.2,2734.1,0.05]
[1748513077650,24.23584222,2734.2,2733.2,3.65864538]
[1748513077651,3.65798448,2733.8,2733.2,3.65864538]
[1748513077815,8.62796608,2733.8,2733.2,3.65864538]
[1748513078010,8.62796608,2733.8,2733.1,0.05]
[1748513078011,19.0773653,2733.7,2733.1,0.05]
[1748513078332,1.6061,2733.6,2733.1,8.05]
[1748513078507,3.65831351,2733.5,2733.1,0.05]
[1748513078712,3.65844906,2733.4,2733.1,0.05]
[1748513078934,3.65858688,2733.3,2733.1,0.05]
[1748513079245,5.01520984,2733.5,2733.1,0.05]
[1748513079406,3.897,2733.4,2733.1,0.05]
[1748513080456,3.897,2733.4,2733.1,3.70884368]
[1748513080656,3.897,2733.4,2733.1,3.70879847]
[1748513081154,3.897,2733.4,2733.2,3.65865076]
[1748513081356,3.897,2733.4,2733.1,3.70879391]
[1748513082739,3.897,2733.4,2733.1,0.05]
[1748513082941,3.897,2733.4,2733.1,8.05]
[1748513083160,3.897,2733.4,2733.1,0.05]
[1748513083372,3.65871505,2733.2,2733.1,0.05]
[1748513083714,22.73608035,2733.2,2733.1,0.05]
[1748513084534,24.34068035,2733.2,2733.1,0.05]
[1748513085128,28.22768035,2733.2,2733.1,0.05]
[1748513085328,30.9793247,2733.2,2733.1,0.05]
[1748513086338,31.5293247,2733.2,2733.1,0.05]
[1748513086565,44.5325327,2733.2,2733.1,0.05]
[1748513087033,44.5325327,2733.2,2733.1,21.248107]
[1748513087262,44.5325327,2733.2,2733.1,16.09209595]